bitfinex/quotes_ETHUSD_20220212
["timestamp","ask_amount","ask_price","bid_price","bid_amount"]
[1644696449157,0.01010661,2959.2,2958.9,0.788]
[1644696450057,0.00343298,2959.4,2958.6,1.68975]
[1644696450257,0.00343298,2959.4,2958.1,1.09507]
[1644696450258,0.01010661,2959.2,2958.1,1.09507]
[1644696450456,0.01010661,2959.2,2958.1,0.25]
[1644696450457,1.43848027,2959.1,2958.1,0.25]
[1644696450656,0.00343298,2959.0,2957.6,0.01011224]
[1644696450857,0.169,2958.9,2957.6,0.01011224]
[1644696451058,0.84786141,2958.4,2957.6,0.01011224]
[1644696451305,0.00343298,2958.3,2957.5,0.84525]
[1644696451513,0.01353987,2958.7,2957.6,0.01011097]
[1644696451704,0.01010689,2958.7,2957.6,3.51011097]
[1644696451902,0.01010689,2958.7,2957.7,1.0]
[1644696451903,0.01353987,2958.7,2957.7,1.0]
[1644696452103,0.01010689,2958.7,2957.7,1.0]
[1644696452503,0.8748053,2959.0,2957.7,1.0]
[1644696452703,0.8748053,2959.0,2957.9,0.84512]
[1644696452704,3.41010681,2958.7,2957.9,0.84512]
[1644696452902,0.00343298,2958.6,2957.8,0.84518]
[1644696453105,0.68941705,2957.8,2957.7,1.3]
[1644696453303,0.68941705,2957.8,2957.6,0.01011089]
[1644696453704,0.68941705,2957.8,2957.5,1.3]
[1644696453903,0.68941705,2957.8,2957.6,0.0101101]
[1644696454959,0.68941705,2957.8,2957.4,0.169]
[1644696455158,0.68941705,2957.8,2957.6,0.0101101]
[1644696455358,0.00343298,2957.7,2957.6,0.0101101]
[1644696455558,0.68941705,2957.8,2957.6,0.0101101]
[1644696456159,0.68941705,2957.8,2956.7,0.169]
[1644696456362,0.00343298,2957.7,2957.6,0.0101101]
[1644696456561,0.68941705,2957.8,2957.6,0.0101101]
[1644696456963,0.68941705,2957.8,2957.6,1.01e-05]
[1644696457266,0.68941705,2957.8,2956.6,0.25]
[1644696457267,7.39962455,2957.7,2956.6,0.25]
[1644696457464,5.0,2957.3,2955.5,3.669]
[1644696457663,4.61693298,2957.2,2955.7,0.25]
[1644696457863,6.69586836,2957.2,2955.7,0.25]
[1644696458063,0.67004696,2956.6,2955.7,0.25]
[1644696458264,0.67004696,2956.6,2955.8,0.1691]
[1644696458464,0.67004696,2956.6,2955.4,10.59643537]
[1644696458706,0.67004696,2956.6,2955.4,10.89643537]
[1644696458897,0.67004696,2956.6,2955.2,0.1691]
[1644696459098,0.1691,2956.8,2955.2,0.1691]
[1644696459307,1.22083298,2956.9,2955.2,0.1691]
[1644696459604,3.67067307,2956.8,2955.2,0.1691]
[1644696460008,3.67067307,2956.8,2955.9,0.01011313]
[1644696460206,0.68534998,2956.5,2955.9,0.01011313]
[1644696460807,0.68534998,2956.5,2955.4,0.84586]
[1644696461008,3.67067307,2956.8,2955.4,1.14586]
[1644696461207,3.44852307,2956.8,2956.1,0.00948888]
[1644696461407,3.44852307,2956.8,2955.5,0.12858888]
[1644696462211,0.68656451,2956.5,2955.5,0.12858888]
[1644696462447,3.47366418,2956.4,2955.5,0.12858888]
[1644696462652,3.47366418,2956.4,2955.4,1.14586]
[1644696462851,0.68656451,2956.5,2955.4,1.14586]
[1644696463052,0.68656451,2956.5,2955.5,0.84583]
[1644696463651,0.65818451,2956.5,2955.5,0.82496776]
[1644696463851,4.05818451,2956.5,2955.5,0.82496776]
[1644696464055,3.41621421,2956.4,2955.5,0.82496776]
[1644696464459,4.05818451,2956.5,2955.5,0.82496776]
[1644696464860,3.40916557,2956.4,2955.5,0.82496776]
[1644696465058,4.05818451,2956.5,2955.5,0.82496776]
[1644696465658,3.43622783,2956.4,2955.3,0.1691]
[1644696465858,0.1691,2956.4,2955.1,0.1691]
[1644696466059,0.1691,2956.4,2955.9,0.01011322]
[1644696466804,0.1691,2956.4,2955.1,0.1691]
[1644696467006,4.05818451,2956.5,2955.1,0.1691]
[1644696467204,3.5,2956.4,2956.0,0.01011311]
[1644696467408,4.05818451,2956.5,2956.0,0.01011311]
[1644696467604,0.1691,2956.4,2956.0,0.01011311]
[1644696467902,3.83448401,2956.4,2956.0,0.01011311]
[1644696468104,3.83448401,2956.4,2955.1,0.1691]
[1644696468305,3.83448401,2956.4,2956.0,0.01011319]
[1644696469204,3.83448401,2956.4,2955.1,0.1691]
[1644696469407,3.83448401,2956.4,2956.0,0.01011319]
[1644696470551,3.83448401,2956.4,2955.1,1.1691]
[1644696470552,3.83448401,2956.4,2955.1,0.1691]
[1644696470752,0.1691,2956.3,2956.0,0.01011319]
[1644696471257,3.9446,2956.2,2956.0,0.01011319]
[1644696471654,3.9446,2956.2,2955.4,1.69172]
[1644696471857,3.9446,2956.2,2955.4,1.99172]
[1644696472055,3.9446,2956.2,2956.0,0.01011303]
[1644696472557,3.4,2956.5,2956.0,0.01011303]
[1644696472756,3.4,2956.5,2956.1,0.6571]
[1644696473558,3.4,2956.5,2956.2,0.84554]
[1644696473809,3.4,2956.5,2956.3,0.1691]
[1644696476416,3.4,2956.5,2956.2,3.00573]
[1644696477655,3.4,2956.5,2956.2,2.83663]
[1644696477852,3.4,2956.5,2956.2,1.99109]
[1644696478053,3.4,2956.5,2956.2,2.99109]
[1644696478254,3.4,2956.5,2956.2,1.99109]
[1644696478453,3.4,2956.5,2956.2,2.99109]
[1644696479255,3.4,2956.5,2956.3,1.69109]
[1644696480360,3.0212,2957.1,2956.3,1.69109]
[1644696480361,0.0187896,2957.0,2956.5,4.75]
[1644696480559,0.0187896,2957.0,2956.6,2.17863]
[1644696480757,0.0187896,2957.0,2956.7,0.84532]
[1644696480955,1.31295523,2957.2,2956.8,0.488]
[1644696482402,1.31295523,2957.2,2956.9,0.84531]
[1644696482801,1.31765318,2957.2,2957.0,0.788]
[1644696483004,1.31765318,2957.2,2957.0,0.957]
[1644696483801,1.31295523,2957.2,2957.0,0.957]
[1644696484202,1.31295523,2957.2,2957.0,0.488]
[1644696485049,1.26295523,2957.2,2957.0,0.488]
[1644696486357,4.66295523,2957.2,2957.0,0.488]
[1644696487557,4.67305354,2957.2,2957.0,0.488]
[1644696488563,4.66295523,2957.2,2957.0,0.488]
[1644696488798,4.67305354,2957.2,2957.0,0.488]
[1644696489199,4.67305354,2957.2,2957.0,1.33331]
[1644696489598,4.67305354,2957.2,2957.1,0.3]
[1644696489799,4.66295523,2957.2,2957.1,0.3]
[1644696489999,4.67305354,2957.2,2957.1,0.3]
[1644696491001,4.67305354,2957.2,2956.7,0.84532]
[1644696491002,4.66295523,2957.2,2956.7,0.84532]
[1644696491204,4.66295523,2957.2,2956.5,1.0]
[1644696491205,4.66295523,2957.2,2956.9,0.01009966]
[1644696492206,4.66295523,2957.2,2956.7,0.84542]
[1644696492453,4.67305346,2957.2,2956.9,0.0100995]
[1644696493461,4.66295523,2957.2,2956.8,0.3]
[1644696493858,4.67305346,2957.2,2956.9,0.0100995]
[1644696494058,4.67305346,2957.2,2956.9,0.3100995]
[1644696494257,4.67305346,2957.2,2957.0,1.69075]
[1644696494658,4.66295523,2957.2,2957.0,1.69075]
[1644696494959,4.67305346,2957.2,2957.0,1.69075]
[1644696496203,4.67275331,2957.2,2957.0,1.69075]
[1644696497001,4.66295523,2957.2,2957.0,1.69075]
[1644696497202,4.67212985,2957.2,2957.1,3.44237275]
[1644696497403,4.67212985,2957.2,2957.1,4.44237275]
[1644696497802,4.67212985,2957.2,2957.1,4.93037275]
[1644696498302,4.66295523,2957.2,2957.1,4.93037275]
[1644696501952,4.66295523,2957.2,2957.1,4.44237275]
[1644696504609,4.66295523,2957.2,2957.1,4.93037275]
[1644696506211,0.00923441,2957.3,2957.2,6.8]
[1644696506413,0.00923441,2957.3,2957.2,12.19051283]
[1644696506611,0.00923441,2957.3,2957.2,13.2781561]
[1644696507110,0.00343298,2957.7,2957.3,4.34026]
[1644696507310,0.69285003,2957.8,2957.5,0.84516]
[1644696507552,0.68941705,2957.8,2957.6,3.84593571]
[1644696507753,0.68941705,2957.8,2957.7,3.15812693]
[1644696507954,0.68941705,2957.8,2957.7,4.64612693]
[1644696508153,0.68941705,2957.8,2957.7,4.24612693]
[1644696508354,0.68941705,2957.8,2957.7,5.24612693]
[1644696508956,0.68941705,2957.8,2957.7,2.088]
[1644696509155,0.68941705,2957.8,2957.7,0.788]
[1644696509356,0.68941705,2957.8,2957.4,1.0]
[1644696509557,4.08941705,2957.8,2957.3,2.53557]
[1644696509755,4.08941705,2957.8,2957.3,0.6]
[1644696509955,4.08941705,2957.8,2957.3,0.3]
[1644696510257,4.08941705,2957.8,2957.2,3.13328983]
[1644696510457,0.00952583,2957.7,2957.2,3.13328983]
[1644696510758,0.00952583,2957.7,2957.0,4.74782113]
[1644696511615,0.00894458,2957.5,2957.0,4.74723914]
[1644696512009,0.00894458,2957.5,2957.0,4.69723914]
[1644696512208,0.00894458,2957.5,2957.0,1.50894605]
[1644696512606,4.08941705,2957.8,2957.0,1.5]
[1644696512808,0.00892475,2957.4,2957.0,0.30892606]
[1644696513806,4.08941705,2957.8,2957.0,1.14533]
[1644696514007,0.00892468,2957.4,2957.0,1.15425599]
[1644696514947,4.08941705,2957.8,2957.0,1.14533]
[1644696515347,0.00892468,2957.4,2957.0,1.15425599]
[1644696516147,4.08941705,2957.8,2957.0,1.14533]
[1644696516552,0.00900518,2957.4,2957.0,1.15433651]
[1644696516751,0.00900518,2957.4,2957.0,2.84496651]
[1644696516955,0.00900518,2957.4,2957.1,3.14011879]
[1644696517453,4.08941705,2957.8,2957.2,1.0]
[1644696517454,4.04842223,2957.8,2957.2,1.0]
[1644696517754,4.04842223,2957.8,2957.2,1.3]
[1644696517755,0.00900525,2957.4,2957.2,1.3]
[1644696518355,0.00900525,2957.4,2957.2,0.3]
[1644696518555,4.04842223,2957.8,2957.2,0.3]
[1644696520000,0.00897707,2957.6,2957.2,0.3089785]
[1644696521001,4.04842223,2957.8,2957.2,0.3]
[1644696521201,0.00897724,2957.5,2957.2,0.30897836]
[1644696521806,0.00897724,2957.5,2957.3,0.84531]
[1644696522309,4.04842223,2957.8,2957.3,0.84531]
[1644696522556,0.00897724,2957.5,2957.3,0.84531]
[1644696522759,4.00739947,2957.8,2957.3,0.84531]
[1644696524357,4.00739947,2957.8,2957.3,1.84531]
[1644696524558,4.00739947,2957.8,2957.3,0.84531]
[1644696524758,4.00739947,2957.8,2957.2,0.3]
[1644696525357,4.00739947,2957.8,2957.1,0.469]
[1644696526208,4.00739947,2957.8,2957.1,1.469]
[1644696526209,1.43877416,2957.7,2957.1,1.469]
[1644696526414,1.43877416,2957.7,2957.1,0.169]
[1644696526615,1.43877416,2957.7,2957.1,1.169]
[1644696527215,0.01009742,2957.6,2957.3,0.01009877]
[1644696528417,0.01009749,2957.6,2957.3,0.01009873]
[1644696529516,4.00739947,2957.8,2957.1,1.0]
[1644696529717,0.01009749,2957.6,2957.3,0.01009873]
[1644696530360,0.01009749,2957.6,2957.4,0.488]
[1644696530558,4.00739947,2957.8,2957.6,1.69004]
[1644696530559,0.93328954,2957.8,2957.6,1.69004]
[1644696530756,0.93328954,2957.8,2957.7,3.988]
[1644696530956,0.17244504,2958.3,2957.8,3.25]
[1644696531156,0.169,2958.3,2957.8,4.06704676]
[1644696531362,0.169,2958.3,2957.9,1.488]
[1644696532161,0.01010291,2958.2,2957.9,1.488]
[1644696532562,0.01010291,2958.2,2957.9,4.66597197]
[1644696533061,0.169,2958.3,2957.9,4.66597197]
[1644696533264,0.010103,2958.2,2957.9,1.657]
[1644696533467,0.010103,2958.2,2957.6,1.69004]
[1644696533717,1.43859164,2958.1,2957.6,0.488]
[1644696533909,1.43859164,2958.1,2957.4,1.70056574]
[1644696533910,1.43870084,2958.0,2957.4,0.01010574]
[1644696534109,1.43870084,2957.9,2957.4,0.01010574]
[1644696534309,0.82362756,2957.8,2956.8,0.25]
[1644696534509,2.82110084,2957.9,2956.1,3.6344]
[1644696534510,0.77886024,2957.3,2956.2,1.86013]
[1644696534707,5.4507,2957.9,2956.5,0.84554]
[1644696534708,3.5,2957.6,2956.5,0.84554]
[1644696534908,1.43892546,2957.5,2956.5,0.84554]
[1644696535110,1.43892546,2957.4,2956.5,0.84554]
[1644696535311,3.51010364,2957.8,2956.5,0.84554]
[1644696535508,1.43891852,2957.7,2956.5,0.84554]
[1644696535708,1.43891852,2957.7,2956.8,0.01010604]
[1644696535709,1.44902133,2957.7,2956.8,0.01010604]
[1644696535909,0.62855061,2957.5,2956.8,0.01010604]
[1644696536110,4.82323273,2957.4,2956.8,0.01010604]
[1644696536314,3.38431421,2957.4,2956.8,0.01010604]
[1644696536513,1.43893254,2957.3,2956.8,0.01010604]
[1644696536714,1.43893254,2957.3,2956.5,0.84554]
[1644696536913,1.43893254,2957.3,2957.0,0.01010576]
[1644696537115,3.31294671,2957.2,2957.0,0.01010576]
[1644696537316,1.43902735,2957.1,2957.0,0.01010576]
[1644696537561,5.26622918,2957.1,2957.0,0.01010576]
[1644696537962,0.02021152,2956.9,2955.9,0.25]
[1644696538157,0.02021152,2956.9,2955.6,0.169]
[1644696538158,0.76440851,2956.3,2955.6,0.169]
[1644696538360,0.76440851,2956.3,2955.5,0.1691]
[1644696538958,0.76440851,2956.3,2955.7,0.84577]
[1644696539158,0.76440851,2956.3,2955.5,0.1691]
[1644696539359,3.37670842,2956.6,2955.4,0.84583]
[1644696540565,0.78230801,2956.3,2955.4,0.84583]
[1644696540762,0.78230801,2956.3,2955.9,0.00977418]
[1644696541607,0.78230801,2956.3,2955.4,0.84583]
[1644696541608,0.78230801,2956.3,2955.4,1.14583]
[1644696541807,0.78230801,2956.3,2955.4,1.44583]
[1644696542707,3.37670842,2956.6,2955.4,1.44583]
[1644696543007,3.36132842,2956.6,2955.5,0.1691]
[1644696543210,3.4,2956.3,2955.5,0.1691]
[1644696543608,4.27940731,2956.3,2955.5,0.1691]
[1644696543808,3.4,2956.3,2955.5,0.1691]
[1644696544211,3.4,2956.3,2955.8,0.01010178]
[1644696545256,3.36792977,2956.2,2955.4,0.1691]
[1644696545458,3.36792977,2956.2,2955.2,0.25]
[1644696545459,3.36792977,2956.2,2955.9,0.01010151]
[1644696545757,4.59002977,2956.2,2955.9,0.01010151]
[1644696546358,0.81529953,2955.8,2955.2,0.25]
[1644696546561,3.58229598,2955.7,2955.2,0.25]
[1644696546859,0.81529953,2955.8,2954.8,0.04042059]
[1644696547060,0.81529953,2955.8,2955.0,0.1691]
[1644696547260,0.81529953,2955.8,2954.9,0.1691]
[1644696547662,3.94038461,2956.1,2954.9,0.1691]
[1644696547862,3.94038461,2956.1,2955.3,0.0101027]
[1644696548718,0.65954996,2955.8,2954.9,0.1691]
[1644696548910,0.65954996,2955.8,2954.7,0.7691]
[1644696549116,0.65954996,2955.8,2955.6,0.01010215]
[1644696549316,4.00062189,2956.1,2955.6,0.01010215]
[1644696549917,4.00062189,2956.1,2954.7,0.7191]
[1644696550118,4.00062189,2956.1,2954.7,1.0191]
[1644696550317,0.84182239,2955.8,2955.7,0.01010187]
[1644696550718,4.00062189,2956.1,2955.7,0.01010187]
[1644696551120,4.00062189,2956.1,2954.7,1.0217562]
[1644696551519,4.00062189,2956.1,2955.8,0.01010178]
[1644696551721,5.0946,2956.2,2955.8,0.01010178]
[1644696551928,5.0946,2956.2,2955.9,0.488]
[1644696551929,0.1691,2956.2,2955.9,0.488]
[1644696552321,0.1691,2956.2,2956.0,0.1691]
[1644696552557,0.1691,2956.2,2956.1,0.488]
[1644696552758,0.1691,2956.2,2956.1,0.788]
[1644696552958,0.1691,2956.2,2956.1,1.63353]
[1644696553161,3.4,2956.3,2956.1,1.63353]
[1644696553162,3.4,2956.3,2956.1,11.57072129]
[1644696553361,0.34767888,2957.9,2956.3,6.3]
[1644696553563,0.34767888,2957.9,2956.4,0.1691]
[1644696553564,0.17857888,2957.9,2956.4,0.1691]
[1644696553762,0.13819997,2957.9,2956.4,0.9571]
[1644696553962,0.00949654,2957.4,2956.4,1.95323721]
[1644696554162,0.00949654,2957.4,2956.5,3.70967152]
[1644696554365,0.00949654,2957.4,2956.6,1.6571]
[1644696554564,0.00949654,2957.4,2956.6,1.655273]
[1644696554764,0.66135666,2957.6,2956.6,1.955273]
[1644696554965,0.00949729,2957.4,2956.6,1.96477301]
[1644696555364,0.00949729,2957.4,2956.6,2.26477301]
[1644696555664,0.00949729,2957.4,2956.7,4.0351252]
[1644696555863,0.00949729,2957.4,2956.8,4.74742412]
[1644696556068,0.13819997,2957.9,2956.8,5.04742412]
[1644696556313,0.00949736,2957.4,2956.8,5.34742412]
[1644696556514,0.00949736,2957.4,2956.8,2.088]
[1644696556716,0.00949736,2957.4,2956.8,4.30219597]
[1644696556913,0.00949736,2957.4,2956.8,5.30219597]
[1644696557115,0.17618377,2957.9,2956.8,5.30219597]
[1644696557116,0.66384152,2957.8,2956.8,5.30219597]
[1644696557414,0.00998971,2957.4,2956.8,5.30219597]
[1644696557614,0.00998971,2957.4,2956.8,2.088]
[1644696557815,0.00998971,2957.4,2956.8,1.088]
[1644696558017,0.00998971,2957.4,2956.8,2.088]
[1644696558316,0.00998971,2957.4,2956.8,1.088]
[1644696558516,0.66384152,2957.8,2956.8,2.088]
[1644696558718,0.00998971,2957.4,2956.8,2.088]
[1644696559317,0.00998971,2957.4,2956.8,1.088]
[1644696559517,0.66384152,2957.8,2956.8,1.088]
[1644696559718,0.30719997,2957.9,2956.8,4.29780453]
[1644696559719,0.13819997,2957.9,2956.8,4.29780453]
[1644696559987,0.00998971,2957.4,2956.9,6.8]
[1644696560183,0.00998971,2957.4,2957.2,19.67]
[1644696560381,0.00998971,2957.4,2957.3,10.02912013]
[1644696560583,0.00998971,2957.4,2957.3,11.98921142]
[1644696560783,0.73886557,2958.4,2957.3,13.67922142]
[1644696560983,0.0100981,2957.5,2957.4,6.096]
[1644696561185,0.0100981,2957.5,2957.4,10.94200192]
[1644696561388,0.0100981,2957.5,2957.4,11.24200192]
[1644696561984,0.73886557,2958.4,2957.4,11.24200192]
[1644696562183,0.00466066,2957.6,2957.4,11.24200192]
[1644696562385,0.00466066,2957.6,2957.5,3.16511022]
[1644696562584,0.00466066,2957.6,2957.5,3.46511022]
[1644696562783,0.00466066,2957.6,2957.5,4.95311022]
[1644696563182,0.73886557,2958.4,2957.5,4.95311022]
[1644696563383,0.01010417,2957.7,2957.6,1.0]
[1644696563584,0.01010417,2957.7,2957.6,1.488]
[1644696563828,0.01010417,2957.7,2957.6,5.00557533]
[1644696564333,0.73886557,2958.4,2957.6,5.00557533]
[1644696564531,0.01010399,2957.8,2957.6,5.00557533]
[1644696564732,0.01010399,2957.8,2957.7,3.14833435]
[1644696564931,0.01010399,2957.8,2957.7,4.63633435]
[1644696565131,0.01010399,2957.8,2957.7,4.93633435]
[1644696565530,0.00344504,2958.4,2957.7,5.78132435]
[1644696565732,0.00344504,2958.4,2957.8,1.3]
[1644696565930,0.00344504,2958.4,2957.9,4.64520973]
[1644696566133,0.04040916,2958.3,2957.9,4.64520973]
[1644696566333,3.4,2958.2,2958.0,1.3]
[1644696566535,3.4,2958.2,2958.1,1.33299]
[1644696566733,3.4,2958.2,2958.1,0.788]
[1644696567134,3.41010316,2958.2,2958.1,3.91991881]
[1644696567337,3.41010316,2958.2,2958.1,4.91991881]
[1644696567859,3.41010316,2958.2,2958.1,4.43191881]
[1644696568060,3.4,2958.2,2958.1,4.43191881]
[1644696568460,3.4,2958.2,2958.1,1.3]
[1644696568661,3.4,2958.2,2957.8,0.488]
[1644696568862,3.40344504,2958.2,2957.8,0.488]
[1644696569063,3.4,2958.2,2957.8,1.33306]
[1644696569259,3.35,2958.2,2957.8,1.33306]
[1644696569459,0.01010334,2958.1,2957.8,1.33306]
[1644696569760,0.01010334,2958.1,2957.9,3.41730304]
[1644696569959,0.01010334,2958.1,2957.9,3.46387856]
[1644696570358,3.35,2958.2,2957.9,4.30891856]
[1644696570760,0.01010334,2958.1,2957.9,3.46387856]
[1644696571409,0.01010334,2958.1,2958.0,1.0]
[1644696571610,3.35,2958.2,2958.0,1.0]
[1644696571807,0.01010334,2958.1,2958.0,1.3]
[1644696572410,0.01010334,2958.1,2958.0,1.788]
[1644696572811,3.35,2958.2,2958.0,1.788]
[1644696573011,3.36010325,2958.2,2958.0,1.788]
[1644696573613,3.36010325,2958.2,2958.1,3.14546959]
[1644696573813,3.36010325,2958.2,2958.1,4.14546959]
[1644696574116,3.35,2958.2,2958.1,1.0]
[1644696574312,3.35,2958.2,2958.0,0.788]
[1644696575460,3.36010316,2958.2,2958.0,0.788]
[1644696575860,3.36010316,2958.2,2958.0,0.488]
[1644696576061,3.36010316,2958.2,2957.7,0.169]
[1644696576262,3.3635482,2958.2,2957.7,0.169]
[1644696576460,3.3635482,2958.2,2956.9,0.01010793]
[1644696576666,1.369,2958.1,2956.7,0.25]
[1644696576863,1.369,2958.1,2956.9,0.01010769]
[1644696576864,0.82647258,2957.7,2956.9,0.01010769]
[1644696577661,0.82647258,2957.7,2956.8,3.40047861]
[1644696577860,0.82647258,2957.7,2956.9,1.0]
[1644696578061,0.82647258,2957.7,2956.9,1.3054569]
[1644696578264,0.82647258,2957.7,2956.9,1.6054569]
[1644696578812,0.82647258,2957.7,2956.9,0.3]
[1644696579012,0.82647258,2957.7,2956.7,0.25]
[1644696579217,0.00976896,2957.4,2956.9,0.00977093]
[1644696580220,2.01017258,2957.7,2956.2,0.169]
[1644696580419,0.77949145,2957.2,2956.9,0.00977069]
[1644696580717,0.00976872,2957.4,2956.9,0.00977069]
[1644696581116,0.00976872,2957.4,2956.1,4.90740065]
[1644696581316,0.169,2957.6,2956.1,4.919136]
[1644696581821,0.9882137,2957.6,2956.2,1.0]
[1644696582017,0.9882137,2957.6,2956.3,3.37386363]
[1644696582222,0.169,2957.6,2956.4,2.14547]
[1644696582466,0.169,2957.6,2956.7,1.69062]
[1644696582655,3.6136,2958.1,2956.8,0.657]
[1644696582856,4.8632,2958.1,2956.9,3.5]
[1644696583055,1.2496,2958.1,2957.0,0.488]
[1644696583257,1.2496,2958.1,2957.0,1.488]
[1644696584056,0.00952652,2957.7,2957.0,1.488]
[1644696584659,0.00952652,2957.7,2957.1,3.19780513]
[1644696584861,3.8119417,2958.2,2957.2,1.488]
[1644696584862,0.00344504,2958.2,2957.2,1.488]
[1644696585062,0.00344504,2958.2,2957.4,1.69034]
[1644696585263,0.03810169,2957.9,2957.5,10.26562919]
[1644696585467,0.03810169,2957.9,2957.5,10.73772048]
[1644696585665,0.03810169,2957.9,2957.6,1.0]
[1644696585866,0.03810169,2957.9,2957.7,0.488]
[1644696586205,0.00344504,2958.8,2957.8,1.69]
[1644696586410,0.00344504,2958.8,2957.9,0.488]
[1644696586810,0.00344504,2958.8,2958.1,0.84498]
[1644696587015,0.00344504,2958.8,2958.2,3.87806979]
[1644696587411,0.00344504,2958.8,2958.3,1.0]
[1644696587614,0.00344504,2958.8,2958.4,0.488]
[1644696587813,3.9246,2958.9,2958.4,0.488]
[1644696588214,3.9246,2958.9,2958.4,0.788]
[1644696588414,3.9246,2958.9,2958.4,3.96378835]
[1644696588616,3.9246,2958.9,2958.4,3.95604837]
[1644696588814,0.00466694,2958.8,2958.5,1.0]
[1644696589015,0.00466694,2958.8,2958.5,1.788]
[1644696589214,0.00466694,2958.8,2958.5,0.788]
[1644696589618,7.3246,2958.9,2958.5,0.788]
[1644696589960,7.3246,2958.9,2958.0,1.0]
[1644696589961,0.01011315,2958.8,2958.0,0.488]
[1644696590160,0.01355819,2958.8,2958.0,0.488]
[1644696590560,0.01355819,2958.8,2957.6,1.33315]
[1644696590960,0.73004205,2958.8,2957.6,1.33315]
[1644696591161,0.00948307,2958.3,2957.7,3.21227719]
[1644696591361,0.00948307,2958.3,2957.7,3.23107028]
[1644696591559,0.00948307,2958.3,2957.8,1.84507]
[1644696591761,0.00948307,2958.3,2957.8,2.14507]
[1644696592163,0.00344504,2958.8,2957.8,2.14507]
[1644696592361,0.00948331,2958.2,2957.8,1.14507]
[1644696592561,0.00948331,2958.2,2957.8,0.3]
[1644696592762,0.00948331,2958.2,2957.7,4.89751367]
[1644696592961,0.00948331,2958.2,2957.7,1.769]
[1644696593163,0.00948331,2958.2,2957.7,5.01335073]
[1644696593363,0.00344504,2958.8,2957.8,1.0]
[1644696593707,0.00948348,2958.1,2957.8,1.3]
[1644696594107,0.00948348,2958.1,2957.8,1.0]
[1644696594312,0.00948348,2958.1,2957.8,1.3]
[1644696594514,0.00344504,2958.8,2957.9,3.25214831]
[1644696594717,0.00344504,2958.8,2958.1,0.84493]
[1644696594718,0.03792822,2958.5,2958.1,0.84493]
[1644696594913,0.03792822,2958.5,2958.2,3.15824099]
[1644696595114,0.03792822,2958.5,2958.1,4.85208278]
[1644696595314,0.03792822,2958.5,2958.2,1.0]
[1644696595517,0.03792822,2958.5,2958.2,4.15770171]
[1644696595715,0.00344504,2958.8,2958.2,2.14495]
[1644696595915,0.00952545,2958.5,2958.2,5.29145211]
[1644696596117,0.00952545,2958.5,2958.3,0.3]
[1644696596916,0.00344504,2958.8,2958.3,0.3]
[1644696597117,0.00952536,2958.5,2958.3,3.46155151]
[1644696597469,0.00952536,2958.5,2958.3,0.3]
[1644696598060,0.00344504,2958.8,2958.3,0.3]
[1644696598462,0.00952536,2958.5,2958.3,0.3]
[1644696599262,0.00344504,2958.8,2958.3,0.3]
[1644696599463,3.40952246,2958.5,2958.3,0.3]
[1644696600563,3.4,2958.5,2958.3,0.3]
[1644696600764,3.40952246,2958.5,2958.3,0.3]
[1644696602717,3.40952246,2958.5,2958.2,0.3]
[1644696602915,3.4,2958.5,2958.2,1.0]
[1644696603114,3.40952266,2958.5,2958.1,2.77792]
[1644696603315,3.40952266,2958.5,2958.2,1.0]
[1644696604116,3.4,2958.5,2958.2,1.0]
[1644696604316,3.40952274,2958.5,2958.2,1.0]
[1644696604519,3.40952274,2958.5,2958.2,5.81982283]
[1644696605155,3.40952274,2958.5,2958.4,0.01387743]
[1644696605359,3.4,2958.5,2958.4,3.14621687]
[1644696605561,3.40952274,2958.5,2958.4,3.14621687]
[1644696605760,3.40952274,2958.5,2958.4,4.44621687]
[1644696606262,3.40952274,2958.5,2958.4,4.74621687]
[1644696606461,3.4,2958.5,2958.4,4.74621687]
[1644696607464,3.4,2958.5,2958.4,1.61387743]
[1644696607869,3.4,2958.5,2958.4,0.31387743]
[1644696608808,3.39885914,2958.5,2958.4,0.31387743]
[1644696610618,0.03808453,2959.0,2958.6,6.8]
[1644696610816,0.03808453,2959.0,2958.7,23.17]
[1644696610817,0.00346122,2958.8,2958.7,23.17]
[1644696611016,2.15748001,2960.0,2958.7,23.17]
[1644696611017,2.79163166,2960.0,2958.8,6.8]
[1644696611217,1.43785444,2959.9,2958.9,3.8]
[1644696611415,1.43785444,2959.9,2958.9,5.288]
[1644696611416,1.43780761,2959.8,2958.9,5.288]
[1644696611615,1.43785444,2959.9,2958.9,6.16244394]
[1644696612018,1.43785444,2959.9,2959.2,6.096]
[1644696612019,0.55073,2959.9,2959.2,6.096]
[1644696612216,4.1263,2960.1,2959.4,25.72]
[1644696612464,4.1263,2960.1,2959.6,19.67]
[1644696612659,0.1688,2960.8,2959.7,0.488]
[1644696612859,1.28757957,2960.7,2959.7,24.658]
[1644696613062,1.28757957,2960.7,2960.0,2.53292]
[1644696613258,1.28757957,2960.7,2960.1,3.96044413]
[1644696613459,1.28757957,2960.7,2960.1,1.788]
[1644696614065,1.28757957,2960.7,2960.1,0.788]
[1644696614266,1.53351549,2959.9,2959.1,0.6568]
[1644696614464,3.84905063,2959.8,2958.9,4.19571891]
[1644696614665,1.53351549,2959.9,2958.9,0.25551891]
[1644696614963,1.53351549,2959.9,2958.9,0.25]
[1644696615263,0.01014171,2959.5,2958.9,0.26014409]
[1644696615463,0.01014171,2959.5,2959.2,0.84469]
[1644696615666,0.01014171,2959.5,2959.2,1.6893]
[1644696615863,0.01014171,2959.5,2959.4,0.0156232]
[1644696616062,1.4936572,2959.9,2959.4,0.0156232]
[1644696616512,0.01014161,2959.6,2959.4,0.0156232]
[1644696617517,1.4936572,2959.9,2959.4,0.0156232]
[1644696620057,0.01014124,2959.8,2959.4,0.0156232]
[1644696620663,0.01014124,2959.8,2959.3,0.84466]
[1644696620868,0.01014124,2959.8,2959.4,5.34693534]
[1644696621063,1.4936572,2959.9,2959.6,0.84435]
[1644696621262,0.01014143,2959.7,2959.6,0.84435]
[1644696621463,0.01014143,2959.7,2959.6,2.63235]
[1644696622164,3.4,2959.8,2959.6,2.63235]
[1644696622363,3.4,2959.8,2959.7,0.1688]
[1644696622565,3.4,2959.8,2959.7,1.9568]